[Event "*** Titled Tuesday Blitz"]
[Site "Chess.com"]
[Date "2020.05.12"]
[Round "7"]
[White "DonPreuss"]
[Black "realmadridtv"]
[Result "0-1"]
[WhiteElo "2189"]
[BlackElo "2460"]
[TimeControl "180+1"]
[EndTime "11:16:15 PDT"]
[Termination "realmadridtv won by resignation"]

1. d4 {[%clk 0:03:00.9]} 1... Nf6 {[%clk 0:02:57.9]} 2. Nc3 {[%clk 0:03:00.5]}
2... d5 {[%clk 0:02:57.5]} 3. e4 {[%clk 0:03:00.6]} 3... Nxe4 {[%clk 0:02:56]}
4. Nxe4 {[%clk 0:03:00.2]} 4... dxe4 {[%clk 0:02:56.9]} 5. Bc4 {[%clk
0:03:00.3]} 5... e6 {[%clk 0:02:55.2]} 6. c3 {[%clk 0:02:59.8]} 6... c5 {[%clk
0:02:55.1]} 7. d5 {[%clk 0:02:59.1]} 7... Be7 {[%clk 0:02:44.7]} 8. dxe6 {[%clk
0:02:51.2]} 8... Qxd1+ {[%clk 0:02:41.1]} 9. Kxd1 {[%clk 0:02:52.1]} 9... Bxe6
{[%clk 0:02:41.8]} 10. Bxe6 {[%clk 0:02:49]} 10... fxe6 {[%clk 0:02:42.7]} 11.
Ne2 {[%clk 0:02:46.9]} 11... O-O {[%clk 0:02:42.7]} 12. Be3 {[%clk 0:02:45.2]}
12... Nc6 {[%clk 0:02:42.2]} 13. Ng3 {[%clk 0:02:40.7]} 13... Ne5 {[%clk
0:02:34.3]} 14. Nxe4 {[%clk 0:02:38.7]} 14... Nc4 {[%clk 0:02:34.5]} 15. Ke2
{[%clk 0:02:21.8]} 15... Nxb2 {[%clk 0:02:28.9]} 16. Rab1 {[%clk 0:02:21]} 16...
Na4 {[%clk 0:02:28.5]} 17. Rxb7 {[%clk 0:02:19.7]} 17... Rf7 {[%clk 0:02:21]}
18. Rhb1 {[%clk 0:02:11.1]} 18... h6 {[%clk 0:02:13]} 19. Rc7 {[%clk 0:01:53.7]}
19... Raf8 {[%clk 0:01:55.1]} 20. Rxa7 {[%clk 0:01:46.7]} 20... Nxc3+ {[%clk
0:01:44.6]} 21. Nxc3 {[%clk 0:01:44.9]} 21... c4 {[%clk 0:01:45.1]} 22. Rd7
{[%clk 0:01:38]} 22... Bf6 {[%clk 0:01:43.4]} 23. Rxf7 {[%clk 0:01:36.9]} 23...
Rxf7 {[%clk 0:01:44.3]} 24. Ne4 {[%clk 0:01:26]} 24... Be5 {[%clk 0:01:41.3]}
25. Rc1 {[%clk 0:00:54.5]} 25... Rc7 {[%clk 0:01:37.8]} 26. f4 {[%clk
0:00:51.6]} 26... Bb2 {[%clk 0:01:36.7]} 27. Rc2 {[%clk 0:00:51.7]} 27... c3
{[%clk 0:01:37]} 28. Bd4 {[%clk 0:00:48.4]} 28... Rc4 {[%clk 0:01:33.3]} 29. Kd3
{[%clk 0:00:47]} 29... Ra4 {[%clk 0:01:32.9]} 30. Nxc3 {[%clk 0:00:46.5]} 30...
Bxc3 {[%clk 0:01:29.8]} 31. Bxc3 {[%clk 0:00:43.9]} 31... Rxf4 {[%clk
0:01:29.1]} 32. a3 {[%clk 0:00:35.7]} 32... Kf7 {[%clk 0:01:26.8]} 33. Ra2
{[%clk 0:00:35.9]} 33... Ra4 {[%clk 0:01:24.2]} 34. Bb4 {[%clk 0:00:35.8]} 34...
e5 {[%clk 0:01:24.7]} 35. Kc3 {[%clk 0:00:35.8]} 35... Ke6 {[%clk 0:01:24.3]}
36. Kb3 {[%clk 0:00:36.3]} 36... Ra8 {[%clk 0:01:25]} 37. a4 {[%clk 0:00:36.8]}
37... e4 {[%clk 0:01:24.3]} 38. a5 {[%clk 0:00:37]} 38... Kd5 {[%clk 0:01:24.3]}
39. a6 {[%clk 0:00:35.8]} 39... e3 {[%clk 0:01:24.5]} 40. a7 {[%clk 0:00:35.6]}
40... Ke4 {[%clk 0:01:24.2]} 41. Bc5 {[%clk 0:00:30.5]} 41... Kd3 {[%clk
0:01:22.6]} 42. Ka4 {[%clk 0:00:21.7]} 42... e2 {[%clk 0:01:22.6]} 43. Bb4
{[%clk 0:00:21.7]} 43... Rxa7+ {[%clk 0:01:22.1]} 44. Kb3 {[%clk 0:00:20.6]}
44... Rxa2 {[%clk 0:01:13.2]} 45. Kxa2 {[%clk 0:00:21.5]} 45... Kc2 {[%clk
0:01:13.8]} 46. Ka3 {[%clk 0:00:04.9]} 46... g5 {[%clk 0:01:13.6]} 47. Ka4
{[%clk 0:00:03.8]} 47... Kd1 {[%clk 0:01:11.6]} 48. Kb5 {[%clk 0:00:02.9]} 48...
e1=Q {[%clk 0:01:12]} 49. Bxe1 {[%clk 0:00:03.8]} 49... Kxe1 {[%clk 0:01:12.9]}
0-1

[Event "*** Titled Tuesday Blitz"]
[Site "Chess.com"]
[Date "2020.05.12"]
[Round "7"]
[White "Ranindu2003"]
[Black "BikingBrian"]
[Result "1-0"]
[WhiteElo "2427"]
[BlackElo "2242"]
[TimeControl "180+1"]
[EndTime "11:16:17 PDT"]
[Termination "Ranindu2003 won by resignation"]

1. e4 {[%clk 0:03:00.6]} 1... c5 {[%clk 0:02:59.6]} 2. Nf3 {[%clk 0:03:00.1]}
2... g6 {[%clk 0:02:59.8]} 3. c3 {[%clk 0:02:59.5]} 3... Bg7 {[%clk 0:02:59.4]}
4. d4 {[%clk 0:02:59.6]} 4... cxd4 {[%clk 0:03:00.3]} 5. cxd4 {[%clk 0:03:00.5]}
5... d5 {[%clk 0:03:00.7]} 6. e5 {[%clk 0:03:00.3]} 6... Bg4 {[%clk 0:03:00.7]}
7. Nbd2 {[%clk 0:02:59.4]} 7... Nc6 {[%clk 0:02:59.6]} 8. Bb5 {[%clk 0:02:57.7]}
8... e6 {[%clk 0:02:56.3]} 9. h3 {[%clk 0:02:54.5]} 9... Bxf3 {[%clk 0:02:55.9]}
10. Qxf3 {[%clk 0:02:54.5]} 10... Ne7 {[%clk 0:02:55.4]} 11. O-O {[%clk
0:02:50.7]} 11... O-O {[%clk 0:02:55.4]} 12. Nb3 {[%clk 0:02:50.6]} 12... Qb6
{[%clk 0:02:54.4]} 13. Bxc6 {[%clk 0:02:48.7]} 13... Nxc6 {[%clk 0:02:54.5]} 14.
Rd1 {[%clk 0:02:48.9]} 14... a5 {[%clk 0:02:53.4]} 15. Be3 {[%clk 0:02:15.9]}
15... a4 {[%clk 0:02:52.4]} 16. Nc5 {[%clk 0:02:15.6]} 16... Qc7 {[%clk
0:02:16]} 17. Rac1 {[%clk 0:02:11.8]} 17... b6 {[%clk 0:02:16.1]} 18. Nd3 {[%clk
0:02:06.2]} 18... Qd7 {[%clk 0:02:16.1]} 19. h4 {[%clk 0:01:58.7]} 19... Rfc8
{[%clk 0:02:13.5]} 20. h5 {[%clk 0:01:56.6]} 20... Ne7 {[%clk 0:02:13.4]} 21.
hxg6 {[%clk 0:01:53]} 21... hxg6 {[%clk 0:02:10.4]} 22. g4 {[%clk 0:01:46.6]}
22... Rxc1 {[%clk 0:02:09.4]} 23. Rxc1 {[%clk 0:01:46.8]} 23... Rc8 {[%clk
0:02:09.3]} 24. Rd1 {[%clk 0:01:44.9]} 24... Rf8 {[%clk 0:01:25.5]} 25. Bg5
{[%clk 0:01:39.7]} 25... Nc6 {[%clk 0:01:20.3]} 26. Qf4 {[%clk 0:01:31.7]} 26...
Qc7 {[%clk 0:01:00.2]} 27. Kg2 {[%clk 0:01:27.2]} 27... f6 {[%clk 0:00:59]} 28.
exf6 {[%clk 0:01:12.1]} 28... Qxf4 {[%clk 0:00:59.9]} 29. Nxf4 {[%clk
0:01:09.1]} 29... Bxf6 {[%clk 0:00:58.4]} 30. Bh6 {[%clk 0:00:58.8]} 30... Re8
{[%clk 0:00:51.4]} 31. g5 {[%clk 0:00:46.5]} 31... Bxd4 {[%clk 0:00:48.9]} 32.
Nxg6 {[%clk 0:00:46.7]} 32... e5 {[%clk 0:00:39.3]} 33. Nh4 {[%clk 0:00:45.3]}
33... Ne7 {[%clk 0:00:21.8]} 34. f4 {[%clk 0:00:44.3]} 34... Be3 {[%clk
0:00:20.2]} 35. f5 {[%clk 0:00:43.4]} 35... Rf8 {[%clk 0:00:15.5]} 36. f6 {[%clk
0:00:41.3]} 36... Nc6 {[%clk 0:00:07.7]} 37. Bxf8 {[%clk 0:00:41.3]} 37... Kxf8
{[%clk 0:00:07.3]} 38. Rxd5 {[%clk 0:00:41.9]} 38... Nd4 {[%clk 0:00:06.7]} 39.
Rd7 {[%clk 0:00:39.4]} 1-0

[Event "*** Titled Tuesday Blitz"]
[Site "Chess.com"]
[Date "2020.05.12"]
[Round "7"]
[White "kirillshevchenko"]
[Black "murtas73"]
[Result "0-1"]
[WhiteElo "2809"]
[BlackElo "2636"]
[TimeControl "180+1"]
[EndTime "11:16:21 PDT"]
[Termination "murtas73 won on time"]

1. e4 {[%clk 0:03:00.9]} 1... e6 {[%clk 0:02:59.8]} 2. d4 {[%clk 0:03:00.4]}
2... d5 {[%clk 0:03:00.7]} 3. Nc3 {[%clk 0:03:00.9]} 3... Bb4 {[%clk 0:03:00.1]}
4. e5 {[%clk 0:03:00]} 4... c5 {[%clk 0:03:00]} 5. a3 {[%clk 0:03:00.7]} 5...
Ba5 {[%clk 0:02:59.6]} 6. b4 {[%clk 0:02:59.8]} 6... cxd4 {[%clk 0:02:59.2]} 7.
Nb5 {[%clk 0:02:58.2]} 7... Bc7 {[%clk 0:02:58.4]} 8. f4 {[%clk 0:02:58.7]} 8...
Bd7 {[%clk 0:02:56.5]} 9. Nxc7+ {[%clk 0:02:47.8]} 9... Qxc7 {[%clk 0:02:56.1]}
10. Nf3 {[%clk 0:02:48.5]} 10... Ba4 {[%clk 0:02:50.8]} 11. Bd3 {[%clk
0:02:47.9]} 11... Nc6 {[%clk 0:02:46.3]} 12. O-O {[%clk 0:02:43.9]} 12... Nge7
{[%clk 0:02:44.9]} 13. Qe1 {[%clk 0:02:39.7]} 13... Qb6 {[%clk 0:02:39.4]} 14.
Rb1 {[%clk 0:02:35.9]} 14... Bb5 {[%clk 0:02:32.8]} 15. Qf2 {[%clk 0:02:10.5]}
15... a6 {[%clk 0:02:19.6]} 16. g4 {[%clk 0:01:32.6]} 16... h5 {[%clk
0:02:12.6]} 17. h3 {[%clk 0:01:32.9]} 17... hxg4 {[%clk 0:02:11.4]} 18. hxg4
{[%clk 0:01:33.8]} 18... Rc8 {[%clk 0:02:07.8]} 19. Bb2 {[%clk 0:01:30.7]} 19...
Bxd3 {[%clk 0:02:02.2]} 20. cxd3 {[%clk 0:01:30.8]} 20... Ng6 {[%clk 0:02:02]}
21. Nxd4 {[%clk 0:01:29.3]} 21... Nxd4 {[%clk 0:01:58.7]} 22. Bxd4 {[%clk
0:01:29.2]} 22... Qb5 {[%clk 0:01:59]} 23. f5 {[%clk 0:01:22.2]} 23... exf5
{[%clk 0:01:46.4]} 24. Qxf5 {[%clk 0:01:21.4]} 24... O-O {[%clk 0:01:30]} 25. e6
{[%clk 0:01:16.9]} 25... Qe8 {[%clk 0:01:29.1]} 26. exf7+ {[%clk 0:00:39.7]}
26... Qxf7 {[%clk 0:01:27.6]} 27. Qg5 {[%clk 0:00:35]} 27... Qe6 {[%clk
0:01:22.2]} 28. Rf5 {[%clk 0:00:31.6]} 28... Qd6 {[%clk 0:01:19.4]} 29. Qe3
{[%clk 0:00:21.4]} 29... Rfe8 {[%clk 0:01:11.7]} 30. Qh3 {[%clk 0:00:15.1]}
30... Rc2 {[%clk 0:01:06.7]} 31. Rbf1 {[%clk 0:00:14.4]} 31... Ree2 {[%clk
0:01:03.3]} 32. Rg5 {[%clk 0:00:09.5]} 32... Rg2+ {[%clk 0:00:53.8]} 33. Qxg2
{[%clk 0:00:09.5]} 33... Rxg2+ {[%clk 0:00:52.6]} 34. Kxg2 {[%clk 0:00:10.4]}
34... Nf4+ {[%clk 0:00:52.1]} 35. Kf3 {[%clk 0:00:02]} 35... Ne6 {[%clk
0:00:50.6]} 36. Be3 {[%clk 0:00:01.5]} 36... d4 {[%clk 0:00:46.7]} 37. Bd2
{[%clk 0:00:01.2]} 37... Qh2 {[%clk 0:00:42.3]} 0-1

[Event "*** Titled Tuesday Blitz"]
[Site "Chess.com"]
[Date "2020.05.12"]
[Round "7"]
[White "emiliocordova"]
[Black "Malysch"]
[Result "0-1"]
[WhiteElo "2820"]
[BlackElo "2460"]
[TimeControl "180+1"]
[EndTime "11:16:21 PDT"]
[Termination "Malysch won by resignation"]

1. d4 {[%clk 0:02:43.2]} 1... Nf6 {[%clk 0:02:57.7]} 2. Nf3 {[%clk 0:02:42.3]}
2... c5 {[%clk 0:02:52.6]} 3. e3 {[%clk 0:02:37.5]} 3... b6 {[%clk 0:02:50.1]}
4. Bd3 {[%clk 0:02:33.9]} 4... Bb7 {[%clk 0:02:50.1]} 5. c4 {[%clk 0:02:28.9]}
5... cxd4 {[%clk 0:02:48.7]} 6. exd4 {[%clk 0:02:29.8]} 6... d5 {[%clk
0:02:42.1]} 7. O-O {[%clk 0:02:26.5]} 7... e6 {[%clk 0:02:35.3]} 8. Nc3 {[%clk
0:02:15.2]} 8... dxc4 {[%clk 0:02:34.7]} 9. Bxc4 {[%clk 0:02:07.2]} 9... Be7
{[%clk 0:02:34.1]} 10. a3 {[%clk 0:02:04.2]} 10... O-O {[%clk 0:02:33.1]} 11.
Re1 {[%clk 0:02:00.5]} 11... Nc6 {[%clk 0:02:32.3]} 12. Ba2 {[%clk 0:01:55.5]}
12... Rc8 {[%clk 0:02:31.3]} 13. Bg5 {[%clk 0:01:50.5]} 13... h6 {[%clk
0:01:58.2]} 14. Be3 {[%clk 0:01:40.2]} 14... Na5 {[%clk 0:01:42.7]} 15. Ne5
{[%clk 0:01:35.7]} 15... Bxa3 {[%clk 0:01:33.2]} 16. Qd2 {[%clk 0:00:56]} 16...
Bb4 {[%clk 0:01:25.3]} 17. Bxh6 {[%clk 0:00:55.6]} 17... Bxc3 {[%clk 0:00:32.6]}
18. bxc3 {[%clk 0:00:51.5]} 18... gxh6 {[%clk 0:00:31.6]} 19. Qxh6 {[%clk
0:00:50.1]} 19... Rxc3 {[%clk 0:00:29.4]} 20. Ng6 {[%clk 0:00:43.7]} 20... Nh7
{[%clk 0:00:19.4]} 21. Rxe6 {[%clk 0:00:27]} 21... Nb3 {[%clk 0:00:14]} 22. Bxb3
{[%clk 0:00:21.9]} 22... Rxb3 {[%clk 0:00:13.3]} 23. Ne7+ {[%clk 0:00:21.6]}
23... Kh8 {[%clk 0:00:11.6]} 24. Re5 {[%clk 0:00:21.2]} 24... Qxd4 {[%clk
0:00:08]} 25. Rae1 {[%clk 0:00:20.7]} 25... Qxe5 {[%clk 0:00:07.3]} 0-1

[Event "*** Titled Tuesday Blitz"]
[Site "Chess.com"]
[Date "2020.05.12"]
[Round "7"]
[White "ajian"]
[Black "bmt011"]
[Result "0-1"]
[WhiteElo "2360"]
[BlackElo "2101"]
[TimeControl "180+1"]
[EndTime "11:16:21 PDT"]
[Termination "bmt011 won by checkmate"]

1. d4 {[%clk 0:03:00.9]} 1... Nf6 {[%clk 0:02:53]} 2. c4 {[%clk 0:03:00.7]} 2...
e6 {[%clk 0:02:52.8]} 3. Nc3 {[%clk 0:03:00]} 3... Bb4 {[%clk 0:02:51.2]} 4. Qc2
{[%clk 0:03:00.1]} 4... O-O {[%clk 0:02:47.1]} 5. a3 {[%clk 0:02:59.4]} 5...
Bxc3+ {[%clk 0:02:46.7]} 6. Qxc3 {[%clk 0:03:00.3]} 6... Ne4 {[%clk 0:02:43.1]}
7. Qc2 {[%clk 0:03:00.3]} 7... f5 {[%clk 0:02:43.6]} 8. g3 {[%clk 0:03:00.1]}
8... b6 {[%clk 0:02:43.4]} 9. Bg2 {[%clk 0:03:00.3]} 9... Bb7 {[%clk 0:02:44]}
10. Nf3 {[%clk 0:03:00.8]} 10... a5 {[%clk 0:02:39.4]} 11. Ng5 {[%clk
0:02:46.6]} 11... Qf6 {[%clk 0:02:33.3]} 12. O-O {[%clk 0:02:04.7]} 12... Qxd4
{[%clk 0:01:56.2]} 13. Be3 {[%clk 0:02:03.8]} 13... Qf6 {[%clk 0:01:39.9]} 14.
Nxe4 {[%clk 0:02:02]} 14... Bxe4 {[%clk 0:01:36.1]} 15. Bxe4 {[%clk 0:02:02.1]}
15... fxe4 {[%clk 0:01:37]} 16. Qxe4 {[%clk 0:02:02.4]} 16... Nc6 {[%clk
0:01:37.5]} 17. Rad1 {[%clk 0:01:57.7]} 17... Rad8 {[%clk 0:01:26.9]} 18. Rd2
{[%clk 0:01:52.9]} 18... a4 {[%clk 0:01:15.3]} 19. h4 {[%clk 0:01:48.4]} 19...
h6 {[%clk 0:01:13.6]} 20. Rfd1 {[%clk 0:01:43.7]} 20... Rf7 {[%clk 0:01:12.8]}
21. c5 {[%clk 0:01:28.8]} 21... b5 {[%clk 0:01:00.6]} 22. Bf4 {[%clk 0:01:08.9]}
22... Na5 {[%clk 0:00:50.1]} 23. Bxc7 {[%clk 0:00:41.5]} 23... Qxf2+ {[%clk
0:00:47.2]} 24. Kh1 {[%clk 0:00:42]} 24... Rdf8 {[%clk 0:00:28.7]} 25. Bf4
{[%clk 0:00:20.3]} 25... Rxf4 {[%clk 0:00:23.8]} 26. gxf4 {[%clk 0:00:16.1]}
26... Rxf4 {[%clk 0:00:20.4]} 27. Qxf4 {[%clk 0:00:09.6]} 27... Qxf4 {[%clk
0:00:19.8]} 28. Rxd7 {[%clk 0:00:10.1]} 28... Qxh4+ {[%clk 0:00:20]} 29. Kg2
{[%clk 0:00:09.7]} 29... Qg4+ {[%clk 0:00:19.7]} 30. Kf2 {[%clk 0:00:10]} 30...
Qf4+ {[%clk 0:00:20.1]} 31. Kg2 {[%clk 0:00:09.4]} 31... Nc4 {[%clk 0:00:20.3]}
32. R1d3 {[%clk 0:00:04]} 32... Ne3+ {[%clk 0:00:20.1]} 33. Kh3 {[%clk
0:00:01.5]} 33... Qg4+ {[%clk 0:00:19.7]} 34. Kh2 {[%clk 0:00:02]} 34... Qg2#
{[%clk 0:00:20.6]} 0-1

[Event "*** Titled Tuesday Blitz"]
[Site "Chess.com"]
[Date "2020.05.12"]
[Round "7"]
[White "HaryKane"]
[Black "Generalas"]
[Result "1-0"]
[WhiteElo "2605"]
[BlackElo "2383"]
[TimeControl "180+1"]
[EndTime "11:16:22 PDT"]
[Termination "HaryKane won by resignation"]

1. e4 {[%clk 0:03:00.9]} 1... e5 {[%clk 0:02:58.7]} 2. Nf3 {[%clk 0:02:59.9]}
2... Nc6 {[%clk 0:02:58.2]} 3. d4 {[%clk 0:03:00.4]} 3... exd4 {[%clk
0:02:56.6]} 4. Bc4 {[%clk 0:03:01]} 4... Nf6 {[%clk 0:02:56.2]} 5. e5 {[%clk
0:03:01.2]} 5... d5 {[%clk 0:02:56]} 6. Bb5 {[%clk 0:03:01.7]} 6... Ne4 {[%clk
0:02:56.2]} 7. Nxd4 {[%clk 0:03:01.6]} 7... Bc5 {[%clk 0:02:56.2]} 8. Be3 {[%clk
0:03:01.2]} 8... Bd7 {[%clk 0:02:54.9]} 9. Bxc6 {[%clk 0:03:00.6]} 9... bxc6
{[%clk 0:02:55]} 10. O-O {[%clk 0:03:01.4]} 10... O-O {[%clk 0:02:54.7]} 11. f3
{[%clk 0:03:01.6]} 11... Ng5 {[%clk 0:02:51]} 12. f4 {[%clk 0:03:01.9]} 12...
Ne6 {[%clk 0:02:45.8]} 13. Qd2 {[%clk 0:02:56.4]} 13... f6 {[%clk 0:02:30.6]}
14. Nxe6 {[%clk 0:02:44.3]} 14... Bxe3+ {[%clk 0:02:28.2]} 15. Qxe3 {[%clk
0:02:45.2]} 15... Bxe6 {[%clk 0:02:27.5]} 16. Nd2 {[%clk 0:02:45.5]} 16... fxe5
{[%clk 0:02:18.9]} 17. fxe5 {[%clk 0:02:44.6]} 17... Rxf1+ {[%clk 0:01:45.5]}
18. Rxf1 {[%clk 0:02:04.5]} 18... d4 {[%clk 0:01:45.2]} 19. Qf4 {[%clk
0:02:00.1]} 19... Qd5 {[%clk 0:01:25.9]} 20. Nf3 {[%clk 0:01:52.7]} 20... Rf8
{[%clk 0:01:12.8]} 21. Qh4 {[%clk 0:01:48.2]} 21... h6 {[%clk 0:01:02.3]} 22.
Nxd4 {[%clk 0:01:39.9]} 22... Rxf1+ {[%clk 0:00:37.1]} 23. Kxf1 {[%clk
0:01:40.8]} 23... Qxe5 {[%clk 0:00:25.4]} 24. Qd8+ {[%clk 0:01:22.7]} 24... Kh7
{[%clk 0:00:25]} 25. Nxe6 {[%clk 0:01:22.7]} 25... Qxe6 {[%clk 0:00:25.1]} 26.
Qd3+ {[%clk 0:01:19.4]} 26... Kg8 {[%clk 0:00:24.4]} 27. Qb3 {[%clk 0:01:11.1]}
27... Qd5 {[%clk 0:00:24.4]} 28. Kf2 {[%clk 0:01:04.4]} 28... Kf7 {[%clk
0:00:23]} 29. Qxd5+ {[%clk 0:00:55.7]} 29... cxd5 {[%clk 0:00:22.4]} 30. Ke3
{[%clk 0:00:56.2]} 30... Ke6 {[%clk 0:00:16.7]} 31. Kd4 {[%clk 0:00:55.8]} 31...
Kd6 {[%clk 0:00:15]} 32. b4 {[%clk 0:00:56]} 32... a5 {[%clk 0:00:06.6]} 33.
bxa5 {[%clk 0:00:43.6]} 33... c5+ {[%clk 0:00:06.4]} 34. Ke3 {[%clk 0:00:43.8]}
34... Kc6 {[%clk 0:00:07.1]} 35. Kf4 {[%clk 0:00:43.8]} 35... Kb5 {[%clk
0:00:06.6]} 36. Ke5 {[%clk 0:00:44.3]} 36... d4 {[%clk 0:00:05.6]} 37. Kd5
{[%clk 0:00:43.2]} 37... Kb4 {[%clk 0:00:03]} 38. a6 {[%clk 0:00:42]} 38... Kc3
{[%clk 0:00:02.7]} 39. a7 {[%clk 0:00:42.1]} 39... Kxc2 {[%clk 0:00:02.9]} 40.
a8=Q {[%clk 0:00:42.5]} 40... d3 {[%clk 0:00:03.4]} 41. Kxc5 {[%clk 0:00:42.8]}
41... d2 {[%clk 0:00:03.5]} 42. Qe4+ {[%clk 0:00:43.2]} 42... Kb2 {[%clk
0:00:03.5]} 43. Qd4+ {[%clk 0:00:42.7]} 1-0

[Event "*** Titled Tuesday Blitz"]
[Site "Chess.com"]
[Date "2020.05.12"]
[Round "7"]
[White "Semen_Khanin"]
[Black "ThePatrick27"]
[Result "1-0"]
[WhiteElo "2695"]
[BlackElo "2531"]
[TimeControl "180+1"]
[EndTime "11:16:24 PDT"]
[Termination "Semen_Khanin won by resignation"]

1. e4 {[%clk 0:03:00.9]} 1... e5 {[%clk 0:02:59.6]} 2. Nf3 {[%clk 0:03:00.6]}
2... Nc6 {[%clk 0:03:00.3]} 3. Bb5 {[%clk 0:02:59.7]} 3... a6 {[%clk 0:02:59.5]}
4. Ba4 {[%clk 0:02:59.5]} 4... Nf6 {[%clk 0:02:59.5]} 5. O-O {[%clk 0:02:59.6]}
5... Be7 {[%clk 0:03:00]} 6. d3 {[%clk 0:03:00.2]} 6... b5 {[%clk 0:02:59.8]} 7.
Bb3 {[%clk 0:03:00.6]} 7... d6 {[%clk 0:02:59.9]} 8. a3 {[%clk 0:03:00.9]} 8...
O-O {[%clk 0:02:59.4]} 9. Nc3 {[%clk 0:03:01.4]} 9... Be6 {[%clk 0:02:50.5]} 10.
Bxe6 {[%clk 0:02:53.9]} 10... fxe6 {[%clk 0:02:50.2]} 11. b4 {[%clk 0:02:53.4]}
11... Re8 {[%clk 0:02:45.5]} 12. Bd2 {[%clk 0:02:52.3]} 12... Bf8 {[%clk
0:02:45.2]} 13. Qb1 {[%clk 0:02:51.5]} 13... g6 {[%clk 0:02:40.9]} 14. Ne2
{[%clk 0:02:48.3]} 14... Bg7 {[%clk 0:02:40]} 15. Qb3 {[%clk 0:02:48.1]} 15...
d5 {[%clk 0:02:32]} 16. Ng3 {[%clk 0:02:42.4]} 16... Qd6 {[%clk 0:02:13.3]} 17.
Rfe1 {[%clk 0:02:39.6]} 17... Nd7 {[%clk 0:01:59.8]} 18. Rad1 {[%clk 0:02:35.1]}
18... Rf8 {[%clk 0:01:59.1]} 19. Bc3 {[%clk 0:02:22.1]} 19... Rf7 {[%clk
0:01:48.9]} 20. Bb2 {[%clk 0:02:09.8]} 20... h6 {[%clk 0:01:41.4]} 21. exd5
{[%clk 0:01:59.2]} 21... exd5 {[%clk 0:01:41.1]} 22. d4 {[%clk 0:01:55.5]} 22...
e4 {[%clk 0:01:36.8]} 23. Ne5 {[%clk 0:01:55.4]} 23... Rff8 {[%clk 0:01:02.6]}
24. Nxe4 {[%clk 0:01:54.3]} 24... Qe6 {[%clk 0:00:56.3]} 25. Nxd7 {[%clk
0:01:47.7]} 25... Qxd7 {[%clk 0:00:54.5]} 26. Nc5 {[%clk 0:01:44.7]} 26... Qf7
{[%clk 0:00:52.3]} 27. f3 {[%clk 0:01:41.5]} 27... Rfe8 {[%clk 0:00:50.7]} 28.
c3 {[%clk 0:01:22.7]} 28... Ne7 {[%clk 0:00:38.7]} 29. Ne6 {[%clk 0:01:20.1]}
29... Nf5 {[%clk 0:00:27.5]} 30. Qxd5 {[%clk 0:01:17.2]} 30... Rad8 {[%clk
0:00:27.2]} 31. Qb3 {[%clk 0:01:06.5]} 31... Rd7 {[%clk 0:00:20.5]} 32. Nc5
{[%clk 0:01:00.2]} 32... Rde7 {[%clk 0:00:19.1]} 33. Qxf7+ {[%clk 0:00:58]}
33... Kxf7 {[%clk 0:00:20]} 34. Rxe7+ {[%clk 0:00:54.5]} 34... Rxe7 {[%clk
0:00:20]} 35. Kf2 {[%clk 0:00:53.3]} 35... Ne3 {[%clk 0:00:19.7]} 36. Re1 {[%clk
0:00:52.6]} 36... Nc4 {[%clk 0:00:20.4]} 37. Rxe7+ {[%clk 0:00:51.4]} 37... Kxe7
{[%clk 0:00:21.3]} 38. Bc1 {[%clk 0:00:51.7]} 38... c6 {[%clk 0:00:19.9]} 39.
Nxa6 {[%clk 0:00:51.7]} 39... Ke6 {[%clk 0:00:17.6]} 40. Nc5+ {[%clk 0:00:44]}
40... Kd6 {[%clk 0:00:17.9]} 41. g4 {[%clk 0:00:41.9]} 41... Kd5 {[%clk
0:00:17.4]} 42. h4 {[%clk 0:00:40.8]} 42... h5 {[%clk 0:00:17.9]} 43. gxh5
{[%clk 0:00:38.8]} 43... gxh5 {[%clk 0:00:18.8]} 44. Nd3 {[%clk 0:00:39]} 44...
Bf6 {[%clk 0:00:17.7]} 45. Bg5 {[%clk 0:00:37.2]} 45... Kd6 {[%clk 0:00:18.3]}
46. Bxf6 {[%clk 0:00:36.9]} 1-0

[Event "*** Titled Tuesday Blitz"]
[Site "Chess.com"]
[Date "2020.05.12"]
[Round "7"]
[White "Kostya26"]
[Black "vanea_03"]
[Result "0-1"]
[WhiteElo "2394"]
[BlackElo "2620"]
[TimeControl "180+1"]
[EndTime "11:16:24 PDT"]
[Termination "vanea_03 won by resignation"]

1. e4 {[%clk 0:02:48.2]} 1... e5 {[%clk 0:02:58.9]} 2. Nf3 {[%clk 0:02:47.6]}
2... Nc6 {[%clk 0:02:58.4]} 3. d4 {[%clk 0:02:46.9]} 3... exd4 {[%clk
0:02:58.1]} 4. c3 {[%clk 0:02:46.7]} 4... d3 {[%clk 0:02:54.6]} 5. Bxd3 {[%clk
0:02:46.1]} 5... g6 {[%clk 0:02:53.4]} 6. Bf4 {[%clk 0:02:45.3]} 6... Bg7 {[%clk
0:02:52.4]} 7. Nbd2 {[%clk 0:02:45.3]} 7... d6 {[%clk 0:02:51.7]} 8. O-O {[%clk
0:02:44.7]} 8... Nf6 {[%clk 0:02:52.1]} 9. h3 {[%clk 0:02:43.4]} 9... O-O {[%clk
0:02:52.4]} 10. Qc2 {[%clk 0:02:43.9]} 10... Nd7 {[%clk 0:02:42.4]} 11. Rad1
{[%clk 0:02:39.7]} 11... Nde5 {[%clk 0:02:41.1]} 12. Nxe5 {[%clk 0:02:39.3]}
12... Nxe5 {[%clk 0:02:37.1]} 13. Be2 {[%clk 0:02:38.8]} 13... Qe7 {[%clk
0:02:36.5]} 14. Nf3 {[%clk 0:02:36.5]} 14... Be6 {[%clk 0:02:31.4]} 15. Nxe5
{[%clk 0:02:35]} 15... Bxe5 {[%clk 0:02:31.5]} 16. Bxe5 {[%clk 0:02:22.7]} 16...
dxe5 {[%clk 0:02:32.4]} 17. Rd2 {[%clk 0:02:21.7]} 17... Rfd8 {[%clk 0:02:30.8]}
18. Rfd1 {[%clk 0:02:20.6]} 18... Rxd2 {[%clk 0:02:18.5]} 19. Rxd2 {[%clk
0:02:15.5]} 19... Rd8 {[%clk 0:02:16.2]} 20. a3 {[%clk 0:02:14.1]} 20... Rd6
{[%clk 0:02:08.2]} 21. Rxd6 {[%clk 0:02:12.2]} 21... cxd6 {[%clk 0:02:06.2]} 22.
Qa4 {[%clk 0:02:06.8]} 22... a6 {[%clk 0:01:59.7]} 23. Qb4 {[%clk 0:01:59]}
23... Qc7 {[%clk 0:01:59.7]} 24. h4 {[%clk 0:01:44.3]} 24... Kg7 {[%clk
0:01:58.4]} 25. g3 {[%clk 0:01:37.6]} 25... Kf6 {[%clk 0:01:46.1]} 26. Qa4
{[%clk 0:01:27.9]} 26... Ke7 {[%clk 0:01:44]} 27. h5 {[%clk 0:01:20.5]} 27... g5
{[%clk 0:01:32.7]} 28. Qd1 {[%clk 0:00:56.2]} 28... Qd7 {[%clk 0:01:31.3]} 29.
Qd2 {[%clk 0:00:49.6]} 29... h6 {[%clk 0:01:30.5]} 30. f4 {[%clk 0:00:46.7]}
30... f6 {[%clk 0:01:13.8]} 31. fxg5 {[%clk 0:00:45.4]} 31... fxg5 {[%clk
0:01:13.4]} 32. Qe3 {[%clk 0:00:42.8]} 32... Qc6 {[%clk 0:01:07.9]} 33. Kh2
{[%clk 0:00:37.3]} 33... a5 {[%clk 0:00:55.5]} 34. Bf3 {[%clk 0:00:25.2]} 34...
a4 {[%clk 0:00:50.8]} 35. Qe2 {[%clk 0:00:19.4]} 35... Qb6 {[%clk 0:00:48.2]}
36. Kg2 {[%clk 0:00:17.7]} 36... Kf6 {[%clk 0:00:36.8]} 37. Qd2 {[%clk
0:00:16.9]} 37... Kg7 {[%clk 0:00:32.8]} 38. Bd1 {[%clk 0:00:16.4]} 38... Qc6
{[%clk 0:00:29.5]} 39. Bf3 {[%clk 0:00:13.6]} 39... g4 {[%clk 0:00:27.7]} 40.
Bxg4 {[%clk 0:00:13.7]} 40... Bxg4 {[%clk 0:00:26.2]} 0-1